bitfinex/quotes_ETHUSD_20250524
["timestamp","ask_amount","ask_price","bid_price","bid_amount"]
[1748068655425,0.01407445,2537.9,2537.8,20.346]
[1748068656216,0.76767445,2537.9,2537.0,0.20474555]
[1748068656396,0.76767445,2537.9,2537.2,8.0]
[1748068656591,0.76767445,2537.9,2537.5,0.55]
[1748068656792,0.01407445,2537.9,2537.5,0.55]
[1748068657302,0.01407445,2537.9,2537.7,8.0]
[1748068657503,0.7536,2537.8,2537.1,0.7897]
[1748068657714,0.7536,2537.8,2537.2,11.797]
[1748068657934,0.7536,2537.8,2537.3,1.1797]
[1748068658125,0.7536,2537.8,2537.5,8.0]
[1748068658328,0.7536,2537.8,2537.6,11.797]
[1748068658531,0.01407445,2537.9,2537.6,11.797]
[1748068658738,0.01407445,2537.9,2537.7,8.0]
[1748068659237,0.01407445,2537.9,2537.8,33.373]
[1748068659400,0.01407445,2537.9,2537.8,37.32299309]
[1748068660809,0.01407445,2537.9,2537.8,20.88499309]
[1748068661001,0.01407445,2537.9,2537.8,4.49999309]
[1748068662041,0.01407445,2537.9,2537.2,0.8164]
[1748068662342,0.01407445,2537.9,2537.5,0.55]
[1748068662343,0.7875,2537.8,2537.5,0.55]
[1748068663061,6.82525631,2538.9,2537.4,8.0]
[1748068663062,0.05,2538.9,2537.8,0.8164]
[1748068663345,0.05,2538.9,2538.3,0.55]
[1748068663545,0.05,2538.9,2538.7,0.55]
[1748068663702,0.05,2538.9,2538.8,19.798]
[1748068664101,0.05,2538.9,2538.8,20.348]
[1748068664634,0.05,2538.9,2538.8,21.1644]
[1748068664941,0.05,2538.9,2538.8,23.28084]
[1748068665251,0.05,2538.9,2538.8,11.48284]
[1748068665439,0.05,2538.9,2538.8,21.1644]
[1748068666929,0.05,2538.9,2538.8,9.3664]
[1748068667134,0.05,2538.9,2538.8,21.1644]
[1748068668422,0.05,2538.9,2538.8,21.1614]
[1748068669169,0.05,2538.9,2538.8,61.8764]
[1748068669471,0.05,2538.9,2538.8,65.82639309]
[1748068669836,0.05,2538.9,2538.8,13.31639309]
[1748068670063,0.05,2538.9,2538.8,21.1614]
[1748068670631,0.05,2538.9,2538.8,21.1604]
[1748068670833,0.05,2538.9,2538.8,9.3664]
[1748068671090,0.05,2538.9,2538.8,21.1604]
[1748068672492,0.05,2539.9,2538.9,9.3657]
[1748068672667,0.05,2539.9,2539.1,8.55]
[1748068673003,0.05,2539.9,2539.3,0.55]
[1748068673284,0.05,2539.9,2539.5,0.55]
[1748068673494,0.05,2539.9,2539.7,0.55]
[1748068673627,0.05,2539.9,2539.8,0.58935538]
[1748068674183,0.05,2539.9,2539.8,20.342]
[1748068674465,0.05,2539.9,2539.8,10.66577]
[1748068674657,0.05,2539.9,2539.8,20.342]
[1748068676372,0.05,2539.9,2539.8,8.55]
[1748068676675,0.05,2539.9,2539.8,20.34]
[1748068679175,0.05,2539.9,2539.8,61.034]
[1748068680778,0.05,2539.9,2539.8,37.455]
[1748068680940,0.05,2539.9,2539.8,41.28207]
[1748068682752,0.05,2539.9,2539.8,24.16707]
[1748068683590,0.05,2539.9,2539.8,24.16607]
[1748068684744,0.05,2539.9,2539.8,12.37707]
[1748068684943,0.05,2539.9,2539.8,20.338]
[1748068686086,0.05,2539.9,2539.8,8.55]
[1748068686391,0.05,2539.9,2539.8,11.788]
[1748068686683,0.8217,2539.9,2539.8,11.788]
[1748068688681,0.8217,2539.9,2539.8,11.789]
[1748068689141,0.8217,2539.9,2539.8,45.879]
[1748068689542,0.05,2539.9,2539.8,28.903]
[1748068689777,0.05,2539.9,2539.4,0.55]
[1748068689957,0.05,2539.9,2539.5,11.789]
[1748068690459,0.8123,2539.8,2539.1,0.55]
[1748068690653,0.8123,2539.8,2539.2,12.72124]
[1748068690861,0.8123,2539.8,2539.4,0.55]
[1748068692660,0.05,2539.9,2539.4,0.55]
[1748068693102,0.8123,2539.8,2539.5,11.789]
[1748068693303,0.8123,2539.8,2538.8,0.7724]
[1748068693461,0.8123,2539.8,2538.9,11.789]
[1748068693655,0.8123,2539.7,2539.0,13.5179]
[1748068693902,0.8123,2539.7,2539.0,12.9679]
[1748068694196,0.8123,2539.6,2539.1,11.789]
[1748068694414,0.8123,2539.6,2538.4,0.97700823]
[1748068694577,0.8123,2539.4,2538.5,11.789]
[1748068694777,0.8123,2539.4,2538.6,1.27660082]
[1748068695176,0.8123,2539.4,2538.7,11.789]
[1748068695874,0.8123,2539.4,2538.8,11.789]
[1748068696802,0.8123,2539.4,2538.6,1.27660082]
[1748068697008,0.8123,2539.4,2538.9,11.79]
[1748068697164,0.8186,2539.3,2538.2,0.55]
[1748068697360,0.8186,2539.3,2539.0,11.79]
[1748068697676,0.8186,2539.3,2539.1,11.79]
[1748068697892,0.8186,2539.1,2537.9,0.93664]
[1748068698091,0.47568604,2539.1,2538.0,11.79]
[1748068698294,0.8186,2539.0,2538.0,11.79]
[1748068698500,0.8186,2539.0,2538.1,0.55]
[1748068699136,0.8186,2539.0,2538.2,33.631]
[1748068699313,0.8186,2539.0,2538.3,3.94999309]
[1748068700541,0.8186,2539.0,2538.4,28.446]
[1748068700828,0.8186,2539.0,2538.4,11.79]
[1748068701233,0.8186,2539.0,2538.1,0.55]
[1748068701447,0.7518,2538.9,2537.7,0.61454396]
[1748068701733,0.7518,2538.9,2538.2,11.792]
[1748068702695,0.7518,2538.9,2538.2,12.9712]
[1748068702901,0.7518,2538.9,2538.3,0.55]
[1748068707246,0.7518,2538.9,2538.4,11.794]
[1748068709251,0.7518,2538.9,2538.5,33.643]
[1748068709611,0.7518,2538.9,2538.5,16.659]
[1748068709814,0.7518,2538.9,2538.6,2.8453]
[1748068710324,0.7518,2538.9,2538.4,11.794]
[1748068711458,3.93894675,2538.8,2537.7,1.41064396]
[1748068711624,0.821,2538.7,2537.8,11.794]
[1748068711824,0.821,2538.7,2537.8,13.0348544]
[1748068711825,0.821,2538.6,2537.8,13.0348544]
[1748068712150,0.821,2538.6,2537.9,11.794]
[1748068717637,0.821,2538.6,2538.0,0.55]
[1748068719381,0.821,2538.6,2538.1,33.649]
[1748068719784,0.821,2538.6,2538.2,11.796]
[1748068720648,0.821,2538.6,2538.3,28.458]
[1748068723165,1.1850588,2538.6,2538.3,28.458]
[1748068723595,0.821,2538.6,2538.3,28.458]
[1748068723886,0.821,2538.6,2538.4,11.797]
[1748068729085,0.821,2538.6,2538.5,33.243]
[1748068729430,1.18711168,2538.6,2538.5,33.243]
[1748068731127,1.18711168,2538.6,2538.5,37.19299309]
[1748068731128,0.36611168,2538.6,2538.5,37.19299309]
[1748068731330,0.36611168,2538.6,2538.5,5.27529309]
[1748068731624,0.7817,2539.4,2538.6,0.55]
[1748068731824,0.7817,2539.8,2538.9,0.7753]
[1748068733505,0.7817,2539.8,2539.0,0.58937489]
[1748068733842,0.7817,2539.8,2539.0,0.55]
[1748068734032,0.05,2539.9,2539.0,0.58937137]
[1748068734218,0.05,2539.9,2539.2,0.55]
[1748068734419,0.05,2539.9,2539.3,11.83436939]
[1748068734621,0.05,2539.9,2539.4,1.27780633]
[1748068734842,0.05,2539.9,2539.4,1.23843694]
[1748068735707,0.05,2539.9,2539.6,0.7753]
[1748068738434,0.05,2539.9,2539.7,0.55]
[1748068739345,0.05,2539.9,2539.8,16.8]
[1748068739513,0.05,2539.9,2539.8,2.30753]
[1748068739712,0.05,2539.9,2539.8,0.55]
[1748068740943,0.05,2539.9,2539.6,0.7753]
[1748068741150,0.05,2539.9,2539.1,0.8135]
[1748068741352,0.05,2539.9,2539.2,11.792]
[1748068741353,8.0,2539.7,2539.2,11.792]
[1748068741551,0.8205,2539.6,2539.2,11.792]
[1748068741713,4.81992126,2539.5,2539.2,11.792]
[1748068741914,0.88205,2539.5,2539.2,11.792]
[1748068742110,3.93801919,2539.4,2539.2,11.792]
[1748068742316,4.75859317,2539.3,2539.2,11.792]
[1748068743005,4.75859317,2539.3,2538.4,0.61473709]
[1748068743209,1.28106699,2539.3,2538.4,0.61473709]
[1748068743411,3.93844959,2539.1,2538.5,11.792]
[1748068744053,11.93829655,2539.2,2538.5,11.792]
[1748068744251,3.93845562,2539.1,2538.5,11.792]
[1748068744419,8.0,2539.2,2538.5,11.792]
[1748068744625,1.24619778,2539.1,2538.5,11.792]
[1748068745752,0.8205,2539.0,2538.4,0.61473709]
[1748068745929,8.0,2538.9,2538.5,11.793]
[1748068747222,8.8205,2539.0,2538.5,11.793]
[1748068747455,8.8205,2539.0,2538.0,1.16503355]
[1748068747622,12.75908199,2539.0,2538.6,11.793]
[1748068748717,8.8205,2539.0,2538.6,11.793]
[1748068749027,4.75909556,2539.0,2538.6,11.793]
[1748068749230,4.7591104,2539.0,2538.7,45.03]
[1748068749551,0.8205,2539.0,2538.8,16.252]
[1748068749749,12.71871361,2538.9,2538.8,16.252]
[1748068749950,12.71871361,2538.9,2538.8,28.046]
[1748068750746,13.0829246,2538.9,2538.8,28.046]
[1748068753862,3.93886875,2538.8,2538.7,16.984]
[1748068754162,3.93886875,2538.8,2538.7,44.76]
[1748068754762,4.30307974,2538.8,2538.7,44.76]
[1748068754933,4.30307974,2538.8,2537.6,0.61506459]
[1748068754934,0.7575,2538.1,2537.4,0.7641]
[1748068755259,0.7575,2538.1,2537.5,27.776]
[1748068755260,8.7575,2537.7,2537.5,27.776]
[1748068755418,0.7575,2537.7,2537.5,11.796]
[1748068756264,0.7575,2538.0,2537.6,0.03940679]
[1748068756426,0.7575,2538.0,2537.5,12.9756]
[1748068758047,0.7575,2538.2,2537.6,0.03940121]
[1748068758364,0.7575,2538.2,2537.5,12.9756]
[1748068758669,0.7575,2538.9,2537.8,0.7641]
[1748068758825,0.7575,2538.9,2537.9,0.55]
[1748068759223,0.7575,2538.9,2538.2,0.7641]
[1748068759464,0.7575,2538.9,2538.3,11.798]
[1748068759670,0.7575,2538.9,2538.4,11.798]
[1748068760962,4.69624934,2538.9,2538.4,11.798]
[1748068761765,0.7575,2538.9,2538.4,11.798]
[1748068761960,0.7537,2539.1,2538.4,11.798]
[1748068763198,0.7537,2539.4,2538.5,0.7877]
[1748068763396,0.7537,2539.4,2538.5,2.04627]
[1748068763603,8.0,2539.2,2538.5,2.04627]
[1748068765070,11.93829262,2539.2,2538.5,2.04627]
[1748068767303,3.58570529,2539.4,2538.5,0.7877]
[1748068767504,4.69289496,2538.6,2537.9,0.7877]
[1748068767682,4.69294402,2538.6,2538.0,11.797]
[1748068768605,4.69294402,2538.6,2538.1,11.797]
[1748068768981,0.7537,2538.6,2538.1,11.797]
[1748068769183,0.7537,2538.6,2538.2,32.971]
[1748068769365,4.69289822,2538.6,2538.2,32.971]
[1748068769573,0.36453758,2538.5,2538.2,32.971]
[1748068770273,0.36453758,2538.4,2538.2,32.971]
[1748068770903,0.36453758,2538.5,2538.2,32.971]
[1748068772107,0.36453758,2538.4,2538.2,32.971]
[1748068772600,0.36453758,2538.4,2538.1,11.797]
[1748068772794,0.36453758,2538.4,2538.1,13.05547]
[1748068773221,0.7537,2538.6,2538.1,13.05547]
[1748068773416,0.7537,2538.6,2538.1,11.797]
[1748068773935,0.36546235,2538.5,2538.1,11.797]
[1748068774438,0.36546235,2538.5,2538.2,11.798]
[1748068774628,0.36546235,2538.4,2538.2,11.798]
[1748068775833,4.69288773,2538.6,2538.2,11.798]
[1748068776331,0.7537,2538.6,2538.2,11.798]
[1748068776537,4.69289098,2538.6,2538.2,11.798]
[1748068776833,0.7537,2538.6,2538.2,11.798]
[1748068777036,0.36550981,2538.5,2538.2,11.798]
[1748068778033,0.36550981,2538.4,2538.2,11.798]
[1748068779031,0.7537,2538.6,2538.2,11.798]
[1748068779233,0.7537,2538.6,2538.3,32.972]
[1748068779564,0.7883,2538.8,2538.3,32.972]
[1748068779856,0.36557939,2538.7,2538.3,32.972]
[1748068780475,0.36557939,2538.7,2538.3,33.53490509]
[1748068780957,0.36557939,2538.6,2538.3,33.53490509]
[1748068781435,0.7883,2538.8,2538.3,33.53490509]
[1748068781762,0.7883,2538.8,2538.3,0.56290509]
[1748068782061,8.7883,2538.8,2538.3,0.56290509]
[1748068782264,0.36557009,2538.7,2538.2,11.798]
[1748068782739,0.36557009,2538.7,2538.3,11.798]
[1748068782740,8.0,2538.5,2538.3,11.798]
[1748068783061,8.0,2538.6,2538.3,11.798]
[1748068783263,4.30461198,2538.7,2538.3,11.798]
[1748068783565,0.36557009,2538.5,2538.3,11.798]
[1748068784561,0.36557009,2538.4,2538.3,11.798]
[1748068785230,0.36557009,2538.4,2537.9,0.7877]
[1748068785447,0.36557009,2538.4,2538.0,11.798]
[1748068786051,0.36557009,2538.3,2538.0,11.798]
[1748068787262,3.93919939,2538.6,2538.0,11.798]
[1748068788446,0.36587311,2538.5,2538.0,11.798]
[1748068789248,0.36587311,2538.5,2538.1,32.76]
[1748068789588,0.36587311,2538.4,2538.1,32.76]
[1748068790504,0.36587311,2538.3,2538.1,32.76]
[1748068791589,0.36587311,2538.2,2538.1,32.76]
[1748068791887,0.36587311,2538.2,2538.1,11.798]
[1748068795285,0.36587311,2538.2,2537.5,1.9954]
[1748068795612,0.36587311,2538.2,2537.6,11.798]
[1748068796316,0.36587311,2538.1,2537.6,11.798]
[1748068797222,0.7539,2538.4,2537.6,11.798]
[1748068798218,0.36633284,2538.3,2537.5,0.8158]
[1748068798382,0.36633284,2538.3,2537.7,11.798]
[1748068798582,0.36633284,2538.3,2537.7,13.05938]
[1748068799082,0.36633284,2538.2,2537.8,32.761]
[1748068799817,0.36633284,2538.1,2537.8,32.761]
[1748068800805,0.36633284,2538.0,2537.8,32.761]
[1748068801007,0.36633284,2538.0,2537.8,36.63870677]
[1748068801618,8.7539,2538.4,2537.8,36.63870677]
[1748068801826,8.7539,2538.4,2537.7,13.05938]
[1748068802440,8.0,2538.3,2537.7,13.05938]
[1748068802735,0.36623133,2538.2,2537.7,1.26138]
[1748068802933,0.36623133,2538.2,2537.8,11.799]
[1748068803630,0.36623133,2538.1,2537.8,11.799]
[1748068804430,0.36623133,2538.1,2537.9,0.7891]
[1748068804643,0.7705,2538.6,2537.9,0.7891]
[1748068804801,3.52554133,2539.3,2538.1,0.55]
[1748068804802,0.7705,2539.2,2538.1,0.55]
[1748068805138,9.12305413,2539.2,2538.1,0.55]
[1748068805741,0.36589438,2539.1,2538.2,0.7891]
[1748068805943,0.36589438,2539.1,2538.3,0.55]
[1748068806441,0.36589438,2539.0,2538.4,0.7891]
[1748068807349,0.7705,2539.4,2538.3,0.55]
[1748068807350,0.36589438,2538.9,2538.5,0.55]
[1748068807564,0.36589438,2538.9,2538.8,1.3675]
[1748068807853,0.36589438,2538.9,2538.8,14.5420885]
[1748068808252,0.36589438,2539.4,2538.9,0.55]
[1748068809153,0.36589438,2539.4,2539.0,44.557]
[1748068809454,1.97046169,2539.5,2539.0,44.557]
[1748068809651,4.75725226,2539.7,2539.0,44.557]
[1748068809957,11.93768119,2539.6,2539.0,27.568]
[1748068810254,12.30271164,2539.6,2539.0,27.568]
[1748068810649,0.36503045,2539.5,2539.0,11.798]
[1748068811531,0.36503045,2539.5,2539.1,0.03938007]
[1748068811738,0.36503045,2539.6,2539.0,11.798]
[1748068812060,0.36503045,2539.6,2539.1,1.1798]
[1748068812458,0.36503045,2539.6,2539.2,11.796]
[1748068812662,8.0,2539.7,2539.2,11.796]
[1748068812963,10.16366849,2539.9,2539.2,11.796]
[1748068813572,10.16366849,2539.9,2538.8,0.8175]
[1748068813573,0.36447685,2539.8,2538.8,0.8175]
[1748068813873,0.7503,2539.6,2538.9,11.796]
[1748068814047,3.93792981,2539.5,2539.0,11.796]
[1748068814470,4.30240666,2539.5,2539.0,11.796]
[1748068815273,3.93792981,2539.5,2539.0,11.796]
[1748068816398,1.11477685,2539.6,2539.0,11.796]
[1748068817293,0.7503,2539.6,2539.0,11.796]
[1748068817784,8.7503,2539.6,2539.0,11.796]
[1748068817990,0.7503,2539.6,2539.0,11.796]
[1748068818186,9.16877685,2539.8,2539.0,11.796]
[1748068818387,13.10615898,2539.8,2539.0,11.796]
[1748068819273,8.0,2539.6,2539.1,32.573]
[1748068820248,3.93914294,2538.7,2537.2,6.59886442]
[1748068820447,8.7506,2538.6,2537.9,0.8015]
[1748068821062,9.11449633,2538.6,2537.9,0.8015]
[1748068821280,1.11449633,2538.6,2537.9,0.8015]
[1748068822450,0.7506,2538.6,2537.9,0.8015]
[1748068824091,0.36389633,2538.7,2538.0,0.55]
[1748068824580,1.11449633,2539.0,2538.0,0.55]
[1748068824777,0.36389633,2539.0,2537.9,0.7943]
[1748068824975,0.36389633,2539.0,2537.5,11.794]
[1748068824976,0.36389633,2539.0,2538.1,0.7943]
[1748068825967,3.9373657,2539.8,2538.1,0.7943]
[1748068825968,0.36389633,2539.2,2538.4,0.55]
[1748068826169,0.36389633,2539.2,2538.8,0.55]
[1748068826882,9.12639633,2539.7,2538.8,0.55]
[1748068827085,0.91263963,2539.6,2538.8,0.55]
[1748068827291,1.12639633,2539.7,2538.8,0.55]
[1748068827668,0.7625,2539.7,2538.9,11.796]
[1748068828098,0.7625,2539.7,2539.0,11.796]
[1748068828707,0.7625,2539.7,2539.1,0.55]
[1748068828897,0.7625,2539.7,2539.2,0.7943]
[1748068829213,0.7625,2539.7,2539.3,32.572]
[1748068829397,0.7625,2539.7,2539.4,3.33663]
[1748068831282,0.7625,2539.7,2539.3,15.588]
[1748068832113,0.7625,2539.7,2539.4,11.794]
[1748068832869,1.12639633,2539.7,2539.4,11.794]
[1748068833594,1.12639633,2539.7,2538.9,0.7943]
[1748068833921,1.12639633,2539.7,2539.0,11.794]
[1748068834070,4.69998843,2539.7,2539.0,11.794]
[1748068834432,0.7625,2539.7,2539.0,11.794]
[1748068834779,4.69999103,2539.7,2539.0,11.794]
[1748068834976,12.30220906,2539.6,2538.9,0.7943]
[1748068835181,8.0,2539.3,2539.0,11.794]
[1748068835990,0.36454419,2539.2,2539.0,11.794]
[1748068836391,0.7625,2539.1,2539.0,11.794]
[1748068837481,8.0,2539.4,2539.0,11.794]
[1748068837681,0.7625,2539.4,2539.0,11.794]
[1748068838018,0.36456175,2539.3,2539.0,11.794]
[1748068839020,0.7625,2539.4,2539.0,11.794]
[1748068839320,0.7625,2539.4,2539.1,32.571]
[1748068840217,0.7625,2539.4,2539.1,15.587]
[1748068840823,0.36457316,2539.3,2539.1,15.587]
[1748068841201,0.36457316,2539.3,2539.0,11.794]
[1748068841920,0.7625,2539.4,2539.0,13.05234]
[1748068842115,0.7625,2539.4,2539.0,11.794]
[1748068842422,0.8151,2539.7,2539.0,11.794]
[1748068842588,8.8151,2539.7,2539.0,11.794]
[1748068842923,0.36457635,2539.6,2539.0,11.794]
[1748068843520,0.36457635,2539.5,2539.0,11.794]
[1748068843696,0.36457635,2539.5,2539.0,12.42496987]
[1748068844711,0.36457635,2539.4,2539.0,12.42496987]
[1748068845122,0.36457635,2539.6,2539.0,12.42496987]
[1748068845309,8.36457635,2539.6,2539.0,11.794]
[1748068845919,8.0,2539.6,2539.0,11.794]
[1748068846127,0.36460327,2539.5,2539.0,11.794]
[1748068846285,0.36460327,2539.5,2539.1,11.794]
[1748068846984,0.36460327,2539.4,2539.1,11.794]
[1748068848119,8.0,2539.6,2539.1,11.794]
[1748068848924,8.8151,2539.7,2539.1,11.794]
[1748068849102,8.8151,2539.7,2539.2,32.568]
[1748068849303,0.364607,2539.6,2539.2,32.568]
[1748068849831,0.364607,2539.5,2539.2,32.568]
[1748068850637,0.364607,2539.5,2539.3,0.8209]
[1748068850843,0.364607,2539.5,2539.3,0.8602768]
[1748068851032,0.364607,2539.5,2539.2,15.584]
[1748068851218,0.364607,2539.8,2539.2,15.584]
[1748068851423,12.30203305,2539.8,2539.1,11.794]
[1748068851735,8.0,2539.7,2539.1,11.794]
[1748068852112,0.364607,2539.6,2539.1,11.794]
[1748068852934,0.364607,2539.5,2539.1,11.794]
[1748068853837,0.364607,2539.4,2539.1,11.794]
[1748068854761,1.191607,2539.4,2539.1,11.794]
[1748068855046,0.364607,2539.3,2539.1,11.794]
[1748068855718,0.364607,2539.3,2539.1,12.9734]
[1748068856040,0.827,2539.6,2539.1,12.9734]
[1748068856337,0.827,2539.6,2539.1,11.794]
[1748068856945,0.3654276,2539.5,2539.1,11.794]
[1748068857952,0.3654276,2539.4,2539.1,11.794]
[1748068858857,0.827,2539.6,2539.1,11.794]
[1748068859357,0.36545212,2539.5,2539.2,32.566]
[1748068860258,0.36545212,2539.4,2539.2,32.566]
[1748068861346,0.36545212,2539.3,2539.2,32.566]
[1748068862639,0.36545212,2539.3,2539.1,11.794]
[1748068863385,0.827,2539.6,2539.1,11.794]
[1748068864126,0.36582003,2539.5,2539.2,0.79]
[1748068864875,0.827,2539.8,2539.2,0.79]
[1748068865647,0.36580874,2539.7,2538.6,0.55]
[1748068865855,0.36580874,2539.7,2538.9,0.79]
[1748068866390,0.36580874,2539.6,2538.9,0.79]
[1748068866534,0.36580874,2539.6,2538.9,2.0483]
[1748068867345,0.36580874,2539.6,2539.0,11.793]
[1748068867558,0.36580874,2539.5,2539.0,11.793]
[1748068867833,0.36580874,2539.5,2539.1,11.793]
[1748068868391,0.36580874,2539.4,2539.1,11.793]
[1748068869126,0.36580874,2539.4,2539.2,32.565]
[1748068869329,0.36580874,2539.3,2539.2,32.565]
[1748068870040,1.19280874,2539.3,2539.2,32.565]
[1748068870245,10.55617723,2539.3,2539.2,44.358]
[1748068870475,14.4942704,2539.3,2539.2,44.358]
[1748068871075,10.55617723,2539.3,2539.2,44.358]
[1748068871382,8.36580874,2539.3,2539.2,11.793]
[1748068872140,0.36580874,2539.3,2539.2,11.793]
[1748068872872,0.36580874,2539.3,2539.2,12.583]
[1748068873190,0.36580874,2539.3,2539.2,13.8413]
[1748068873341,0.36580874,2539.3,2539.2,12.583]
[1748068874145,0.36580874,2539.3,2539.2,11.793]
[1748068875250,0.36580874,2539.3,2538.9,0.79]
[1748068875450,0.36580874,2539.3,2539.2,11.793]
[1748068879266,0.36580874,2539.3,2539.2,44.348]
[1748068881285,0.36580874,2539.3,2539.2,27.365]
[1748068883205,0.36580874,2539.3,2539.2,11.793]
[1748068886072,0.36580874,2539.3,2539.2,11.794]
[1748068889178,0.36580874,2539.3,2539.2,44.35]
[1748068889607,0.36580874,2539.3,2539.2,32.556]
[1748068889803,1.19510874,2539.3,2539.2,44.35]
[1748068891205,0.36580874,2539.3,2539.2,44.35]
[1748068891410,0.36580874,2539.3,2539.2,11.794]
[1748068892717,0.36586786,2539.3,2539.2,11.794]
[1748068893108,0.36586786,2539.3,2538.6,0.61492855]
[1748068893306,0.36586786,2539.2,2538.6,0.61492855]
[1748068893520,0.36586786,2539.2,2538.7,11.794]
[1748068893725,0.36586786,2539.2,2538.8,0.7915]
[1748068894021,0.36586786,2539.1,2538.8,0.7915]
[1748068894940,0.36586786,2539.0,2538.8,0.7915]
[1748068895145,0.36586786,2539.0,2538.8,2.11154286]
[1748068895643,0.36586786,2539.0,2538.9,11.794]
[1748068896142,0.36586786,2539.0,2538.6,0.61492855]
[1748068896442,0.36586786,2539.0,2538.7,11.794]
[1748068896650,0.36586786,2538.9,2538.7,11.794]
[1748068897552,0.36586786,2538.9,2538.8,11.794]
[1748068898213,1.11826786,2538.9,2538.6,0.61492855]
[1748068898419,0.36586786,2538.8,2538.7,11.794]
[1748068899045,0.36586786,2538.8,2538.6,0.61492855]
[1748068899247,0.36586786,2538.8,2538.7,44.352]
[1748068902251,0.36586786,2538.8,2538.6,0.61492855]
[1748068902647,0.71379465,2538.8,2538.7,11.795]
[1748068902962,0.71379465,2538.8,2538.6,0.61492855]
[1748068902963,2.07716314,2538.8,2538.6,0.61492855]
[1748068903164,0.7524,2538.6,2537.5,0.8308]
[1748068903313,0.7524,2538.6,2538.0,0.61511138]
[1748068903314,6.05497635,2538.6,2538.0,0.61511138]
[1748068903518,2.11576849,2538.6,2537.6,11.795]
[1748068903921,0.36586786,2538.5,2538.0,0.6151684]
[1748068905458,0.36586786,2538.4,2538.0,0.6151684]
[1748068906329,0.36586786,2538.3,2538.0,0.6151684]
[1748068907275,3.93821585,2539.3,2538.0,0.6151684]
[1748068907276,0.7524,2539.1,2538.1,1.3808]
[1748068907435,0.7524,2539.1,2538.3,0.55]
[1748068907769,0.7524,2539.1,2538.4,11.797]
[1748068907970,11.93864113,2539.0,2538.5,11.797]
[1748068908170,1.11720629,2538.9,2538.5,11.797]
[1748068909238,0.36480629,2538.8,2538.6,32.546]
[1748068910031,0.7755,2539.1,2538.6,32.546]
[1748068910238,0.7755,2539.1,2538.6,15.559]
[1748068910574,0.7755,2539.1,2538.6,16.3504]
[1748068910772,0.7755,2539.4,2538.7,0.03938874]
[1748068910971,0.36489826,2539.0,2538.6,0.7914]
[1748068911737,2.58885534,2539.4,2538.6,0.7914]
[1748068912059,6.52685486,2539.4,2538.6,0.7914]
[1748068912772,0.36499937,2539.3,2538.6,0.7914]
[1748068912972,4.30309739,2539.3,2538.6,0.7914]
[1748068913180,5.19572753,2539.3,2538.6,0.7914]
[1748068913370,1.25762951,2539.3,2538.6,0.7914]
[1748068913678,0.36499937,2539.2,2538.7,11.797]
[1748068914160,0.36499937,2539.2,2538.6,0.7914]
[1748068914363,0.36499937,2539.2,2538.8,11.796]
[1748068914544,0.81498622,2539.2,2538.8,11.796]
[1748068914750,0.36499937,2539.1,2538.8,11.796]
[1748068915060,0.36499937,2539.1,2538.6,0.7914]
[1748068915267,8.36499937,2539.1,2538.9,11.796]
[1748068915460,0.36499937,2539.0,2538.9,11.796]
[1748068916835,0.36499937,2539.0,2538.6,0.7914]
[1748068917179,0.36499937,2539.0,2538.1,0.55]
[1748068917180,1.14959937,2539.0,2538.7,11.796]
[1748068917394,2.04222951,2539.0,2538.7,11.796]
[1748068917748,0.36499937,2538.9,2538.7,11.796]
[1748068918287,0.36499937,2538.8,2538.7,11.796]
[1748068919263,0.36499937,2538.8,2538.7,44.341]
[1748068921185,0.796,2539.2,2538.7,44.341]
[1748068921410,1.64183295,2539.2,2538.7,27.354]
[1748068921568,1.64183295,2539.2,2538.7,11.796]
[1748068922446,0.36514993,2539.1,2538.7,11.796]
[1748068923494,0.36514993,2539.0,2538.7,11.796]
[1748068924396,0.36514993,2538.9,2538.7,11.796]
[1748068924687,0.36514993,2538.9,2538.7,13.05365]
[1748068925794,8.0,2539.3,2538.7,13.05365]
[1748068925966,8.0,2539.3,2538.7,11.796]
[1748068926793,0.36524233,2539.2,2538.7,11.796]
[1748068928198,0.36524233,2539.1,2538.7,11.796]
[1748068929059,0.36524233,2539.0,2538.7,11.796]
[1748068929260,0.36524233,2539.0,2538.8,32.544]
[1748068929455,8.0,2539.3,2538.8,32.544]
[1748068929694,8.0,2539.3,2538.8,15.558]
[1748068930297,8.7819,2539.6,2538.8,0.7757]
[1748068930681,0.36517177,2539.5,2538.8,0.7757]
[1748068931709,0.36517177,2539.4,2538.8,0.7757]
[1748068932597,0.36517177,2539.3,2538.8,0.7757]
[1748068932793,0.36517177,2539.3,2538.9,11.795]
[1748068933382,0.36517177,2539.2,2538.8,0.7757]
[1748068933570,1.14707177,2539.2,2538.9,11.795]
[1748068933766,1.14707177,2539.2,2538.6,0.7757]
[1748068934124,1.14707177,2539.2,2538.7,11.795]
[1748068934412,0.36517177,2539.1,2538.7,11.795]
[1748068935320,0.36517177,2539.0,2538.7,11.795]
[1748068936211,10.15716849,2539.4,2538.7,11.795]
[1748068936418,2.15716849,2539.4,2538.7,13.05207]
[1748068936715,2.15716849,2539.4,2538.7,11.795]
[1748068936872,0.36564088,2539.3,2538.7,11.795]
[1748068938088,0.36564088,2539.2,2538.7,11.795]